[Event "*** Titled Tuesday 3|2 Blitz"]
[Site "Chess.com"]
[Date "2014.12.30"]
[Round "4"]
[White "UnPolarizing"]
[Black "Yaacovn"]
[Result "1-0"]
[WhiteElo "2242"]
[BlackElo "2591"]
[TimeControl "180+2"]
[EndTime "11:49:08 PST"]
[Termination "UnPolarizing won by resignation"]

1. e4 {[%clk 0:03:00]} 1... c6 {[%clk 0:02:56.6]} 2. d4 {[%clk 0:03:01]} 2... d5
{[%clk 0:02:57.5]} 3. e5 {[%clk 0:03:02.2]} 3... Bf5 {[%clk 0:02:56.6]} 4. g4
{[%clk 0:03:03.5]} 4... Bd7 {[%clk 0:02:57.4]} 5. c4 {[%clk 0:03:01.4]} 5... e6
{[%clk 0:02:57.3]} 6. Nc3 {[%clk 0:03:02.7]} 6... Ne7 {[%clk 0:02:58.2]} 7. Nf3
{[%clk 0:03:03.4]} 7... h5 {[%clk 0:02:58.5]} 8. gxh5 {[%clk 0:03:00.2]} 8...
Rxh5 {[%clk 0:02:59.1]} 9. Ng5 {[%clk 0:02:54.4]} 9... Rh4 {[%clk 0:02:58.4]}
10. Bd3 {[%clk 0:02:53.7]} 10... g6 {[%clk 0:02:35.2]} 11. Qf3 {[%clk
0:02:36.9]} 11... Nf5 {[%clk 0:02:33.2]} 12. Rg1 {[%clk 0:02:37.8]} 12... Na6
{[%clk 0:01:36.5]} 13. a3 {[%clk 0:02:33.4]} 13... Rxd4 {[%clk 0:01:28.1]} 14.
Bc2 {[%clk 0:02:27.3]} 14... Qc7 {[%clk 0:01:22]} 15. Bxf5 {[%clk 0:02:13.8]}
15... exf5 {[%clk 0:01:08.5]} 16. cxd5 {[%clk 0:02:09]} 16... Qxe5+ {[%clk
0:01:06.1]} 17. Be3 {[%clk 0:02:06.6]} 17... Nc5 {[%clk 0:00:56.2]} 18. Kf1
{[%clk 0:01:58.5]} 18... Rg4 {[%clk 0:00:38]} 19. Rxg4 {[%clk 0:01:49.4]} 19...
f6 {[%clk 0:00:35.4]} 20. Rh4 {[%clk 0:01:37.8]} 20... fxg5 {[%clk 0:00:34.5]}
21. Bxg5 {[%clk 0:01:39.7]} 21... Kf7 {[%clk 0:00:18.6]} 22. Re1 {[%clk
0:01:38.3]} 22... Qg7 {[%clk 0:00:17.4]} 23. Qe3 {[%clk 0:01:38.9]} 23... Re8
{[%clk 0:00:13.9]} 24. Qg3 {[%clk 0:01:40]} 24... Rxe1+ {[%clk 0:00:12.2]} 25.
Kxe1 {[%clk 0:01:41.9]} 25... cxd5 {[%clk 0:00:09.9]} 26. Bh6 {[%clk 0:01:43.2]}
26... Qf6 {[%clk 0:00:09.5]} 27. Bxf8 {[%clk 0:01:42.3]} 27... Kxf8 {[%clk
0:00:11]} 28. Qb8+ {[%clk 0:01:41.4]} 28... Kf7 {[%clk 0:00:11.2]} 29. Rh3
{[%clk 0:01:35.7]} 29... Ne4 {[%clk 0:00:11.1]} 30. Nxe4 {[%clk 0:01:32.1]}
30... fxe4 {[%clk 0:00:13]} 31. Rh7+ {[%clk 0:01:25]} 31... Ke6 {[%clk
0:00:14.2]} 32. Qg8+ {[%clk 0:01:19.6]} 32... Kd6 {[%clk 0:00:15.2]} 33. Qg7
{[%clk 0:01:20.2]} 33... Qe6 {[%clk 0:00:12.3]} 34. Rh8 {[%clk 0:01:13.8]} 34...
Bc6 {[%clk 0:00:12.7]} 35. Rd8+ {[%clk 0:01:07.5]} 35... Kc5 {[%clk 0:00:13.9]}
36. Qc3+ {[%clk 0:01:08.6]} 36... Kb6 {[%clk 0:00:15.2]} 37. Rf8 {[%clk
0:01:06.3]} 37... Kc7 {[%clk 0:00:14.2]} 38. Rf6 {[%clk 0:01:04]} 38... Qg4
{[%clk 0:00:15.1]} 39. Qe5+ {[%clk 0:01:03.3]} 39... Kb6 {[%clk 0:00:15.8]} 40.
Qg3 {[%clk 0:00:59]} 40... Qd7 {[%clk 0:00:14]} 41. Qe3+ {[%clk 0:00:58.1]}
41... d4 {[%clk 0:00:14.8]} 42. Qxe4 {[%clk 0:00:56]} 42... a6 {[%clk
0:00:15.3]} 43. Qe5 {[%clk 0:00:55.7]} 43... d3 {[%clk 0:00:14.6]} 44. Qd6
{[%clk 0:00:53.7]} 44... Qe8+ {[%clk 0:00:14.6]} 45. Re6 {[%clk 0:00:49.9]}
45... Qf7 {[%clk 0:00:15.9]} 46. Qd4+ {[%clk 0:00:49.2]} 46... Kc7 {[%clk
0:00:17.1]} 47. Qd6+ {[%clk 0:00:49.9]} 47... Kb6 {[%clk 0:00:18.2]} 48. Qd4+
{[%clk 0:00:51.2]} 48... Kc7 {[%clk 0:00:19.5]} 49. Qe5+ {[%clk 0:00:52.5]}
49... Kb6 {[%clk 0:00:19.9]} 50. Qe3+ {[%clk 0:00:51.2]} 50... Ka5 {[%clk
0:00:20.9]} 51. Re5+ {[%clk 0:00:49.6]} 51... Ka4 {[%clk 0:00:21.1]} 52. Qxd3
{[%clk 0:00:42.3]} 1-0

[Event "*** Titled Tuesday 3|2 Blitz"]
[Site "Chess.com"]
[Date "2014.12.30"]
[Round "4"]
[White "zmaj23"]
[Black "crisfoisor"]
[Result "0-1"]
[WhiteElo "2101"]
[BlackElo "2129"]
[TimeControl "180+2"]
[EndTime "11:49:15 PST"]
[Termination "crisfoisor won by resignation"]

1. e4 {[%clk 0:02:51.2]} 1... g6 {[%clk 0:02:58.6]} 2. d4 {[%clk 0:02:52.1]}
2... Bg7 {[%clk 0:02:58.9]} 3. Nc3 {[%clk 0:02:53.8]} 3... d6 {[%clk 0:02:59.5]}
4. Be3 {[%clk 0:02:55.4]} 4... a6 {[%clk 0:02:59.6]} 5. a4 {[%clk 0:02:54.5]}
5... b6 {[%clk 0:03:00.1]} 6. Bc4 {[%clk 0:02:55.1]} 6... Bb7 {[%clk 0:02:58.4]}
7. Nge2 {[%clk 0:02:56.6]} 7... e6 {[%clk 0:02:58.5]} 8. f3 {[%clk 0:02:57.8]}
8... Nd7 {[%clk 0:02:58.3]} 9. Qd2 {[%clk 0:02:59.2]} 9... h6 {[%clk 0:02:56.1]}
10. O-O {[%clk 0:02:51.6]} 10... Ne7 {[%clk 0:02:56.2]} 11. f4 {[%clk
0:02:49.5]} 11... d5 {[%clk 0:02:56.6]} 12. exd5 {[%clk 0:02:46.3]} 12... exd5
{[%clk 0:02:56.3]} 13. Bd3 {[%clk 0:02:47.8]} 13... Nf6 {[%clk 0:02:50.2]} 14.
f5 {[%clk 0:02:47.8]} 14... g5 {[%clk 0:02:49.2]} 15. Rae1 {[%clk 0:02:43.6]}
15... Qd6 {[%clk 0:02:43]} 16. Bf2 {[%clk 0:02:32.4]} 16... O-O {[%clk
0:02:38.7]} 17. Bg3 {[%clk 0:02:33.2]} 17... Qd7 {[%clk 0:02:39]} 18. Be5 {[%clk
0:02:32.5]} 18... Rae8 {[%clk 0:02:34.9]} 19. Ng3 {[%clk 0:02:33.5]} 19... Nc8
{[%clk 0:02:33]} 20. Bxf6 {[%clk 0:02:30.9]} 20... Bxf6 {[%clk 0:02:32.7]} 21.
Nh5 {[%clk 0:02:32.6]} 21... Qd6 {[%clk 0:02:30.5]} 22. Rxe8 {[%clk 0:02:27.8]}
22... Rxe8 {[%clk 0:02:25.5]} 23. Ne2 {[%clk 0:02:22.9]} 23... c5 {[%clk
0:02:22.1]} 24. dxc5 {[%clk 0:02:13.4]} 24... bxc5 {[%clk 0:02:22.3]} 25. Nxf6+
{[%clk 0:02:13.6]} 25... Qxf6 {[%clk 0:02:22.4]} 26. Ng3 {[%clk 0:02:14.9]}
26... Qd4+ {[%clk 0:02:16.7]} 27. Kh1 {[%clk 0:02:05.8]} 27... c4 {[%clk
0:02:17.1]} 28. Qb4 {[%clk 0:02:07]} 28... Qb6 {[%clk 0:02:06.8]} 29. Qxb6
{[%clk 0:01:47.1]} 29... Nxb6 {[%clk 0:02:07.2]} 30. Be2 {[%clk 0:01:33.7]}
30... Nxa4 {[%clk 0:02:05.1]} 31. b3 {[%clk 0:01:35.4]} 31... Nc3 {[%clk
0:02:03.2]} 32. Bh5 {[%clk 0:01:30.4]} 32... cxb3 {[%clk 0:01:56.5]} 33. cxb3
{[%clk 0:01:32.3]} 33... d4 {[%clk 0:01:57.4]} 34. f6 {[%clk 0:01:33]} 34... d3
{[%clk 0:01:51]} 35. Nf5 {[%clk 0:01:34.4]} 35... d2 {[%clk 0:01:50.2]} 36. Ne7+
{[%clk 0:01:27.9]} 36... Kf8 {[%clk 0:01:45.7]} 37. h4 {[%clk 0:01:24]} 37...
Be4 {[%clk 0:01:42.1]} 38. hxg5 {[%clk 0:01:21]} 38... hxg5 {[%clk 0:01:42.5]}
39. Bd1 {[%clk 0:01:16]} 39... Bd3 {[%clk 0:01:35.3]} 40. Rg1 {[%clk 0:01:05.5]}
40... Ne2 {[%clk 0:01:31.7]} 41. g4 {[%clk 0:00:49]} 41... Nxg1 {[%clk
0:01:30.6]} 42. Kxg1 {[%clk 0:00:50.9]} 42... Be4 {[%clk 0:01:23.4]} 43. Kf2
{[%clk 0:00:50.8]} 43... Rd8 {[%clk 0:01:24.4]} 44. Ke3 {[%clk 0:00:50.5]} 44...
Bh7 {[%clk 0:01:23.2]} 45. Nc6 {[%clk 0:00:46.6]} 45... Rd6 {[%clk 0:01:23]} 46.
Ne5 {[%clk 0:00:37.1]} 46... Ke8 {[%clk 0:01:20.6]} 47. Nc4 {[%clk 0:00:36]}
47... Rxf6 {[%clk 0:01:16]} 48. Kxd2 {[%clk 0:00:37.3]} 48... Rf4 {[%clk
0:01:14.1]} 49. Kc3 {[%clk 0:00:33.9]} 49... Kd7 {[%clk 0:01:13.8]} 50. Kb4
{[%clk 0:00:32.4]} 50... Bd3 {[%clk 0:01:12.4]} 51. Kc5 {[%clk 0:00:29.9]} 51...
Bxc4 {[%clk 0:01:12.6]} 52. bxc4 {[%clk 0:00:31.8]} 52... Kc7 {[%clk 0:01:13.6]}
53. Kd5 {[%clk 0:00:32.2]} 53... a5 {[%clk 0:01:14]} 54. Kc5 {[%clk 0:00:28.1]}
54... a4 {[%clk 0:01:13.6]} 55. Bxa4 {[%clk 0:00:28.8]} 55... Rxg4 {[%clk
0:01:13.8]} 56. Be8 {[%clk 0:00:30.4]} 56... Rf4 {[%clk 0:01:14.6]} 57. Kd5
{[%clk 0:00:31.3]} 57... g4 {[%clk 0:01:15.6]} 58. Ke5 {[%clk 0:00:32.5]} 58...
Rf2 {[%clk 0:01:15.3]} 59. Ke4 {[%clk 0:00:31.9]} 59... g3 {[%clk 0:01:16.3]}
60. Ke3 {[%clk 0:00:33.1]} 60... Rf6 {[%clk 0:01:17.8]} 0-1

[Event "*** Titled Tuesday 3|2 Blitz"]
[Site "Chess.com"]
[Date "2014.12.30"]
[Round "4"]
[White "Kacparov"]
[Black "GM_Barcenilla"]
[Result "1/2-1/2"]
[WhiteElo "2311"]
[BlackElo "2540"]
[TimeControl "180+2"]
[EndTime "11:49:59 PST"]
[Termination "Game drawn by repetition"]

1. c4 {[%clk 0:02:48.8]} 1... g6 {[%clk 0:02:59]} 2. Nc3 {[%clk 0:02:50.1]} 2...
Bg7 {[%clk 0:02:59.9]} 3. d4 {[%clk 0:02:51.7]} 3... d6 {[%clk 0:03:00.7]} 4.
Nf3 {[%clk 0:02:52.4]} 4... Nf6 {[%clk 0:03:00.7]} 5. e4 {[%clk 0:02:53.5]} 5...
O-O {[%clk 0:03:00.7]} 6. Be2 {[%clk 0:02:54.8]} 6... e5 {[%clk 0:03:01.2]} 7.
O-O {[%clk 0:02:55.7]} 7... Nc6 {[%clk 0:03:02.4]} 8. d5 {[%clk 0:02:57.1]} 8...
Ne7 {[%clk 0:03:03.1]} 9. b4 {[%clk 0:02:58.3]} 9... c6 {[%clk 0:03:04.7]} 10.
a4 {[%clk 0:02:45.3]} 10... a5 {[%clk 0:03:03.2]} 11. bxa5 {[%clk 0:02:43.1]}
11... c5 {[%clk 0:03:03.7]} 12. Bd2 {[%clk 0:02:42.6]} 12... Rxa5 {[%clk
0:03:04.1]} 13. Qc2 {[%clk 0:02:40.8]} 13... Ne8 {[%clk 0:02:59.8]} 14. Nb5
{[%clk 0:02:41.2]} 14... Ra6 {[%clk 0:03:00.4]} 15. a5 {[%clk 0:02:42.7]} 15...
f5 {[%clk 0:02:57.2]} 16. Ng5 {[%clk 0:02:43.4]} 16... Nf6 {[%clk 0:02:55.4]}
17. Rfd1 {[%clk 0:02:41.9]} 17... h6 {[%clk 0:02:40.7]} 18. Ne6 {[%clk
0:02:38.1]} 18... Bxe6 {[%clk 0:02:41.9]} 19. dxe6 {[%clk 0:02:40]} 19... fxe4
{[%clk 0:02:43.3]} 20. Be3 {[%clk 0:02:36.5]} 20... Qb8 {[%clk 0:02:40.8]} 21.
Qd2 {[%clk 0:02:23.4]} 21... Nf5 {[%clk 0:02:37.8]} 22. h3 {[%clk 0:02:13.8]}
22... g5 {[%clk 0:02:24.6]} 23. Bg4 {[%clk 0:02:11.6]} 23... Nd4 {[%clk
0:02:23.6]} 24. Rab1 {[%clk 0:02:10.8]} 24... Nxg4 {[%clk 0:02:16.2]} 25. hxg4
{[%clk 0:02:10.6]} 25... Qc8 {[%clk 0:02:17.1]} 26. e7 {[%clk 0:02:06.9]} 26...
Re8 {[%clk 0:02:14.9]} 27. Bxd4 {[%clk 0:02:07.8]} 27... exd4 {[%clk 0:02:15.8]}
28. Re1 {[%clk 0:01:46.4]} 28... Rxe7 {[%clk 0:02:16]} 29. f3 {[%clk 0:01:17.8]}
29... e3 {[%clk 0:02:11]} 30. Qd3 {[%clk 0:01:15.3]} 30... Qe6 {[%clk
0:02:07.6]} 31. Ra1 {[%clk 0:01:11.6]} 31... d5 {[%clk 0:02:05.8]} 32. Rec1
{[%clk 0:00:58.4]} 32... e2 {[%clk 0:01:51.4]} 33. cxd5 {[%clk 0:00:52.8]} 33...
Qxd5 {[%clk 0:01:50.8]} 34. Re1 {[%clk 0:00:51.4]} 34... c4 {[%clk 0:01:48.9]}
35. Qa3 {[%clk 0:00:48.6]} 35... Re3 {[%clk 0:01:35.7]} 36. Qb4 {[%clk
0:00:46.9]} 36... Rb3 {[%clk 0:01:20]} 37. Qe7 {[%clk 0:00:44.7]} 37... Rxb5
{[%clk 0:01:20.8]} 38. Rxe2 {[%clk 0:00:46]} 38... d3 {[%clk 0:01:21.5]} 39.
Qe8+ {[%clk 0:00:37.8]} 39... Kh7 {[%clk 0:01:22.3]} 40. Re7 {[%clk 0:00:39.5]}
40... Qd4+ {[%clk 0:01:19.5]} 41. Kh2 {[%clk 0:00:32.1]} 41... Qxa1 {[%clk
0:00:56.4]} 42. Qxb5 {[%clk 0:00:31.1]} 42... d2 {[%clk 0:00:57.5]} 43. Qf5+
{[%clk 0:00:20.3]} 43... Rg6 {[%clk 0:00:58.3]} 44. Re6 {[%clk 0:00:21.3]} 44...
Qe5+ {[%clk 0:00:50.9]} 45. Rxe5 {[%clk 0:00:22.1]} 45... Bxe5+ {[%clk 0:00:52]}
46. Qxe5 {[%clk 0:00:15.4]} 46... d1=Q {[%clk 0:00:53.3]} 47. Qe7+ {[%clk
0:00:16.4]} 47... Kh8 {[%clk 0:00:26.8]} 48. Qe8+ {[%clk 0:00:17.6]} 48... Kg7
{[%clk 0:00:27.4]} 49. Qe7+ {[%clk 0:00:18.5]} 49... Kg8 {[%clk 0:00:29.1]} 50.
Qe8+ {[%clk 0:00:19.9]} 50... Kh7 {[%clk 0:00:30.7]} 51. Qe7+ {[%clk 0:00:21.1]}
51... Rg7 {[%clk 0:00:32.3]} 52. Qe4+ {[%clk 0:00:21.8]} 52... Kh8 {[%clk
0:00:33.8]} 53. Qe8+ {[%clk 0:00:22.9]} 53... Rg8 {[%clk 0:00:34.1]} 54. Qe5+
{[%clk 0:00:23.8]} 54... Kh7 {[%clk 0:00:35.7]} 55. Qe7+ {[%clk 0:00:24.9]}
55... Kg6 {[%clk 0:00:36.4]} 56. Qe6+ {[%clk 0:00:26]} 56... Kg7 {[%clk
0:00:37.3]} 57. Qe7+ {[%clk 0:00:27.4]} 57... Kh8 {[%clk 0:00:39.1]} 58. Qe5+
{[%clk 0:00:28.4]} 58... Rg7 {[%clk 0:00:41]} 59. Qe8+ {[%clk 0:00:29.6]} 59...
Kh7 {[%clk 0:00:42.5]} 60. Qe4+ {[%clk 0:00:29.8]} 60... Rg6 {[%clk 0:00:44.4]}
61. Qe7+ {[%clk 0:00:30.9]} 61... Kg8 {[%clk 0:00:46.3]} 62. Qe8+ {[%clk
0:00:31.1]} 62... Kg7 {[%clk 0:00:48.2]} 63. Qe7+ {[%clk 0:00:32.5]} 63... Kh8
{[%clk 0:00:49.8]} 64. Qe8+ {[%clk 0:00:33.3]} 64... Rg8 {[%clk 0:00:41.5]} 65.
Qe5+ {[%clk 0:00:34.1]} 65... Kh7 {[%clk 0:00:43]} 66. Qe7+ {[%clk 0:00:35.2]}
66... Kg6 {[%clk 0:00:43.5]} 67. Qe6+ {[%clk 0:00:35.4]} 67... Kg7 {[%clk
0:00:43.3]} 68. Qe7+ {[%clk 0:00:36.6]} 68... Kh8 {[%clk 0:00:45.2]} 69. Qe5+
{[%clk 0:00:37.5]} 69... Rg7 {[%clk 0:00:47.1]} 70. Qe8+ {[%clk 0:00:38.3]}
1/2-1/2

[Event "*** Titled Tuesday 3|2 Blitz"]
[Site "Chess.com"]
[Date "2014.12.30"]
[Round "4"]
[White "swayamsm"]
[Black "GedoGluperd"]
[Result "1-0"]
[WhiteElo "2332"]
[BlackElo "2307"]
[TimeControl "180+2"]
[EndTime "11:50:05 PST"]
[Termination "swayamsm won by resignation"]

1. d4 {[%clk 0:03:00]} 1... g6 {[%clk 0:02:59.5]} 2. c4 {[%clk 0:02:59.5]} 2...
Bg7 {[%clk 0:03:00.8]} 3. e4 {[%clk 0:02:58.3]} 3... d6 {[%clk 0:03:01.3]} 4.
Be2 {[%clk 0:02:54.3]} 4... e5 {[%clk 0:03:02.4]} 5. Nf3 {[%clk 0:02:53]} 5...
Bg4 {[%clk 0:03:02.2]} 6. Be3 {[%clk 0:02:51.4]} 6... Nc6 {[%clk 0:03:00.4]} 7.
d5 {[%clk 0:02:51.2]} 7... Bxf3 {[%clk 0:03:00.4]} 8. Bxf3 {[%clk 0:02:52.3]}
8... Nd4 {[%clk 0:03:01.6]} 9. O-O {[%clk 0:02:51.7]} 9... Ne7 {[%clk
0:03:00.1]} 10. g3 {[%clk 0:02:46.9]} 10... c5 {[%clk 0:02:58.9]} 11. Bg2 {[%clk
0:02:37.9]} 11... f5 {[%clk 0:02:59.1]} 12. Nc3 {[%clk 0:02:35.4]} 12... O-O
{[%clk 0:02:57.6]} 13. f4 {[%clk 0:02:36.8]} 13... a6 {[%clk 0:02:48]} 14. fxe5
{[%clk 0:02:31.3]} 14... Bxe5 {[%clk 0:02:47.6]} 15. Bf4 {[%clk 0:02:25.2]}
15... Bxf4 {[%clk 0:02:44.7]} 16. Rxf4 {[%clk 0:02:24.1]} 16... g5 {[%clk
0:02:34.3]} 17. Rf2 {[%clk 0:02:18.7]} 17... f4 {[%clk 0:02:35.5]} 18. gxf4
{[%clk 0:02:16.4]} 18... Rxf4 {[%clk 0:02:32.7]} 19. Rxf4 {[%clk 0:02:16.9]}
19... gxf4 {[%clk 0:02:34.1]} 20. Qg4+ {[%clk 0:02:08.6]} 20... Ng6 {[%clk
0:02:34.2]} 21. Rf1 {[%clk 0:02:08.6]} 21... Qe7 {[%clk 0:02:22.2]} 22. Rxf4
{[%clk 0:02:06.7]} 22... b5 {[%clk 0:02:12.9]} 23. h4 {[%clk 0:01:55.6]} 23...
Kh8 {[%clk 0:02:10]} 24. Rf2 {[%clk 0:01:56.4]} 24... b4 {[%clk 0:02:07.4]} 25.
Nd1 {[%clk 0:01:52.8]} 25... Qxh4 {[%clk 0:02:04]} 26. Qxh4 {[%clk 0:01:48.6]}
26... Nxh4 {[%clk 0:02:04.6]} 27. Ne3 {[%clk 0:01:49.7]} 27... Kg7 {[%clk
0:01:59.9]} 28. Kh2 {[%clk 0:01:44.3]} 28... Rf8 {[%clk 0:02:00]} 29. Rxf8
{[%clk 0:01:41.8]} 29... Kxf8 {[%clk 0:02:00.3]} 30. Kg3 {[%clk 0:01:43.2]}
30... Ng6 {[%clk 0:02:01.4]} 31. Bh3 {[%clk 0:01:43]} 31... Ke7 {[%clk
0:01:59.4]} 32. Bf5 {[%clk 0:01:43.2]} 32... Kf6 {[%clk 0:01:56.1]} 33. Ng4+
{[%clk 0:01:34.2]} 33... Kg5 {[%clk 0:01:53.5]} 34. Bxg6 {[%clk 0:01:33.3]}
34... hxg6 {[%clk 0:01:52.4]} 35. e5 {[%clk 0:01:34]} 35... Nf5+ {[%clk
0:01:52.8]} 36. Kf3 {[%clk 0:01:34.1]} 36... Nd4+ {[%clk 0:01:45.4]} 37. Ke4
{[%clk 0:01:30.3]} 37... Kxg4 {[%clk 0:01:45.3]} 38. exd6 {[%clk 0:01:31.3]}
38... Nf5 {[%clk 0:01:39.1]} 39. d7 {[%clk 0:01:29.9]} 39... Nd6+ {[%clk
0:01:39.4]} 40. Ke5 {[%clk 0:01:26.3]} 40... Nb7 {[%clk 0:01:40.9]} 41. d6
{[%clk 0:00:58.3]} 41... Kh5 {[%clk 0:01:34.9]} 42. Kd5 {[%clk 0:00:49.1]} 42...
g5 {[%clk 0:01:34.7]} 43. Kc6 {[%clk 0:00:50.2]} 43... Nd8+ {[%clk 0:01:35.6]}
44. Kc7 {[%clk 0:00:34.1]} 44... Ne6+ {[%clk 0:01:36.3]} 45. Kc8 {[%clk
0:00:34.6]} 45... g4 {[%clk 0:01:37.8]} 46. d8=Q {[%clk 0:00:36.5]} 46... Nxd8
{[%clk 0:01:39.1]} 47. Kxd8 {[%clk 0:00:38.4]} 47... g3 {[%clk 0:01:40.7]} 48.
d7 {[%clk 0:00:40.3]} 48... g2 {[%clk 0:01:42.3]} 49. Kc7 {[%clk 0:00:39.5]}
49... g1=Q {[%clk 0:01:41.6]} 50. d8=Q {[%clk 0:00:41.4]} 50... Qd4 {[%clk
0:01:37.6]} 51. Qe8+ {[%clk 0:00:31.8]} 51... Kg5 {[%clk 0:01:37]} 52. b3 {[%clk
0:00:33.1]} 52... Kf4 {[%clk 0:01:34.6]} 53. Kc6 {[%clk 0:00:32.4]} 53... Qb2
{[%clk 0:01:30.7]} 54. Qf7+ {[%clk 0:00:21.9]} 54... Ke3 {[%clk 0:01:30.3]} 55.
Qe6+ {[%clk 0:00:21.8]} 55... Kd3 {[%clk 0:01:31.2]} 56. Qh3+ {[%clk 0:00:20.9]}
56... Ke4 {[%clk 0:01:27.7]} 57. Qg4+ {[%clk 0:00:18.7]} 57... Kd3 {[%clk
0:01:28.8]} 58. Qf3+ {[%clk 0:00:19.4]} 58... Kc2 {[%clk 0:01:30.3]} 59. Qe2+
{[%clk 0:00:18.7]} 59... Kb1 {[%clk 0:01:31.5]} 60. Qxb2+ {[%clk 0:00:18.3]}
60... Kxb2 {[%clk 0:01:33]} 61. Kxc5 {[%clk 0:00:20.2]} 61... Ka3 {[%clk
0:01:32.3]} 62. Kb6 {[%clk 0:00:07.9]} 62... Kxa2 {[%clk 0:01:30.8]} 63. c5
{[%clk 0:00:09.5]} 63... Kxb3 {[%clk 0:01:32.4]} 64. c6 {[%clk 0:00:11.1]} 64...
Ka2 {[%clk 0:01:34.1]} 65. c7 {[%clk 0:00:12.8]} 65... b3 {[%clk 0:01:35.8]} 66.
c8=Q {[%clk 0:00:14.7]} 66... b2 {[%clk 0:01:37.4]} 67. Qc4+ {[%clk 0:00:15.2]}
67... Ka1 {[%clk 0:01:38.3]} 68. Qa4+ {[%clk 0:00:16.1]} 68... Kb1 {[%clk
0:01:38.7]} 69. Kxa6 {[%clk 0:00:17.3]} 69... Kc1 {[%clk 0:01:39.1]} 70. Qc4+
{[%clk 0:00:19]} 1-0

[Event "*** Titled Tuesday 3|2 Blitz"]
[Site "Chess.com"]
[Date "2014.12.30"]
[Round "4"]
[White "WanderingPuppet"]
[Black "oggy1984"]
[Result "1-0"]
[WhiteElo "2058"]
[BlackElo "2138"]
[TimeControl "180+2"]
[EndTime "11:50:05 PST"]
[Termination "WanderingPuppet won on time"]

1. Nc3 {[%clk 0:03:00]} 1... c5 {[%clk 0:02:58]} 2. e4 {[%clk 0:03:00.2]} 2...
e6 {[%clk 0:02:58.7]} 3. Nf3 {[%clk 0:03:01.4]} 3... a6 {[%clk 0:02:59.2]} 4. d4
{[%clk 0:03:03]} 4... cxd4 {[%clk 0:03:01.1]} 5. Nxd4 {[%clk 0:03:03.9]} 5...
Qc7 {[%clk 0:03:02.7]} 6. Bd3 {[%clk 0:03:05.2]} 6... b5 {[%clk 0:03:00.8]} 7.
Qf3 {[%clk 0:03:04.9]} 7... Bb7 {[%clk 0:02:58.1]} 8. Qg3 {[%clk 0:03:05.7]}
8... Qxg3 {[%clk 0:02:55.3]} 9. hxg3 {[%clk 0:03:06.6]} 9... Nc6 {[%clk
0:02:45.6]} 10. Nxc6 {[%clk 0:03:05.8]} 10... Bxc6 {[%clk 0:02:45.9]} 11. a4
{[%clk 0:03:07.5]} 11... b4 {[%clk 0:02:37.9]} 12. Ne2 {[%clk 0:03:08.5]} 12...
Bc5 {[%clk 0:02:34.2]} 13. Bf4 {[%clk 0:02:44.3]} 13... Ne7 {[%clk 0:02:29.6]}
14. Be5 {[%clk 0:02:43.5]} 14... f6 {[%clk 0:02:28.3]} 15. Bd4 {[%clk
0:02:44.3]} 15... d6 {[%clk 0:02:19.3]} 16. b3 {[%clk 0:02:32.2]} 16... Kf7
{[%clk 0:02:14.5]} 17. O-O-O {[%clk 0:02:11.1]} 17... h6 {[%clk 0:02:10.7]} 18.
Rh5 {[%clk 0:02:03.6]} 18... Bxd4 {[%clk 0:01:56.6]} 19. Nxd4 {[%clk 0:02:03.9]}
19... Bd7 {[%clk 0:01:57.5]} 20. Bc4 {[%clk 0:02:01.3]} 20... Rhc8 {[%clk
0:01:38.1]} 21. Nf5 {[%clk 0:01:56.4]} 21... Nxf5 {[%clk 0:01:17.3]} 22. exf5
{[%clk 0:01:52.9]} 22... Ke7 {[%clk 0:01:09.5]} 23. fxe6 {[%clk 0:01:49.9]}
23... Bxa4 {[%clk 0:01:09.5]} 24. Ra5 {[%clk 0:01:27.8]} 24... Bb5 {[%clk
0:01:03]} 25. Bxb5 {[%clk 0:01:21.4]} 25... axb5 {[%clk 0:01:04]} 26. Rxb5
{[%clk 0:01:21.4]} 26... Ra2 {[%clk 0:00:51.5]} 27. Rd2 {[%clk 0:01:15.3]} 27...
Kxe6 {[%clk 0:00:33.9]} 28. Rxb4 {[%clk 0:01:13.6]} 28... Rc6 {[%clk 0:00:28.4]}
29. Re4+ {[%clk 0:01:09.3]} 29... Kf7 {[%clk 0:00:26.5]} 30. Red4 {[%clk
0:01:08.2]} 30... Ke6 {[%clk 0:00:26.9]} 31. c4 {[%clk 0:01:04.1]} 31... Ra1+
{[%clk 0:00:15.1]} 32. Kb2 {[%clk 0:01:03.2]} 32... Raa6 {[%clk 0:00:10]} 33. b4
{[%clk 0:00:57.4]} 33... Rcb6 {[%clk 0:00:10]} 34. b5 {[%clk 0:00:52.8]} 34...
Ra7 {[%clk 0:00:09.5]} 35. Kb3 {[%clk 0:00:48.2]} 35... f5 {[%clk 0:00:10.8]}
36. Ra2 {[%clk 0:00:38.5]} 36... Rab7 {[%clk 0:00:10.4]} 37. Ra8 {[%clk
0:00:36.7]} 37... Kf6 {[%clk 0:00:08.5]} 38. Rd8 {[%clk 0:00:34.9]} 38... Ke6
{[%clk 0:00:09.4]} 39. Kb4 {[%clk 0:00:31.3]} 39... Ke7 {[%clk 0:00:09]} 40. Rg8
{[%clk 0:00:29.5]} 40... Kf7 {[%clk 0:00:10.2]} 41. Rc8 {[%clk 0:00:28.3]} 41...
Ke7 {[%clk 0:00:10.8]} 42. Rd5 {[%clk 0:00:29.2]} 42... Ke6 {[%clk 0:00:10.7]}
43. Rf8 {[%clk 0:00:28.6]} 43... g6 {[%clk 0:00:10.8]} 44. Rh8 {[%clk
0:00:27.3]} 44... h5 {[%clk 0:00:10.8]} 45. Re8+ {[%clk 0:00:26]} 45... Kf7
{[%clk 0:00:11.3]} 46. Rc8 {[%clk 0:00:27.1]} 46... Ke6 {[%clk 0:00:11.9]} 47.
f4 {[%clk 0:00:26.7]} 47... Kf6 {[%clk 0:00:12.3]} 48. Ka5 {[%clk 0:00:24.2]}
48... Ke6 {[%clk 0:00:12.1]} 49. Rc6 {[%clk 0:00:24.2]} 49... Rxc6 {[%clk
0:00:11.4]} 50. bxc6 {[%clk 0:00:26.1]} 50... Rb1 {[%clk 0:00:10.1]} 51. Rb5
{[%clk 0:00:22.4]} 51... Ra1+ {[%clk 0:00:07.4]} 52. Kb6 {[%clk 0:00:23]} 52...
Ke7 {[%clk 0:00:08.4]} 53. Kb7 {[%clk 0:00:21.6]} 1-0